fUSD/lending_fUSD_20240822
["ID","MTS","AMOUNT","RATE_DAILY","PERIOD"]
[335504238,1724287833734,-500.0,0.00010958,2]
[335504239,1724287833744,-500.0,0.00010958,2]
[335504240,1724287833753,-24308.18,0.00010958,2]
[335504241,1724287833762,-500.0,0.00010958,2]
[335504242,1724287833771,-24308.18,0.00010958,2]
[335504243,1724287833781,-227.84811783,0.00010958,2]
[335504244,1724287833790,-6431.18,0.00010958,2]
[335504245,1724287833799,-1140.49,0.00010958,2]
[335504246,1724287833808,-1140.49,0.00010958,2]
[335504247,1724287833817,-44976.21,0.00010958,2]
[335504248,1724287833827,-44976.21,0.00010958,2]
[335504249,1724287833836,-7393.65,0.00010958,2]
[335504250,1724287833845,-7393.65,0.00010958,2]
[335504251,1724287833854,-610.74,0.00010958,2]
[335504252,1724287833864,-610.74,0.00010958,2]
[335504253,1724287833873,-64913.72,0.00010958,2]
[335504254,1724287833883,-4053.59,0.00010958,2]
[335504255,1724287833894,-64913.72,0.00010958,2]
[335504256,1724287833903,-3220.86,0.00010958,2]
[335504257,1724287833912,-3220.86,0.00010958,2]
[335504258,1724287833921,-1487.17,0.00010958,2]
[335504259,1724287833933,-1487.17,0.00010958,2]
[335504260,1724287833943,-5069.09928988,0.00010958,2]
[335504265,1724287837573,-548.20763933,9.988e-05,2]
[335504266,1724287837582,-1149.83206989,0.00010699,2]
[335504267,1724287837593,-1079.19611686,0.00010699,2]
[335504268,1724287837605,-631.66792316,0.00010699,2]
[335504269,1724287837617,-173.88585911,0.00010699,2]
[335504270,1724287837626,-155.17853723,0.00010888,2]
[335504271,1724287837635,-13676.87696024,0.00010958,2]
[335504272,1724287837652,-1107.2408442,0.00010958,2]
[335504273,1724287837662,-6087.97219556,0.00010958,2]
[335504274,1724287837671,-12828.51,0.00010958,2]
[335504275,1724287837680,-260.78977955,0.00010958,2]
[335504276,1724287837691,-10521.39127066,0.00010958,2]
[335504277,1724287837702,-2046.32894979,0.00010958,2]
[335504278,1724287837710,-342.6114669,0.00010958,2]
[335504279,1724287837744,-1210.4585331,0.00010958,2]
[335504280,1724287837754,-500.0,0.00010958,2]
[335504281,1724287837763,-209.03238953,0.00010958,2]
[335504282,1724287837774,-1344.03761047,0.00010958,2]
[335504283,1724287837783,-607.80559253,0.00010958,2]
[335504284,1724287837792,-3706.58,0.00010958,2]
[335504285,1724287837802,-3706.58,0.00010958,2]
[335504286,1724287837811,-836.38,0.00010958,2]
[335504287,1724287837821,-836.38,0.00010958,2]
[335504288,1724287837832,-3292.24,0.00010958,2]
[335504289,1724287837841,-5103.35,0.00010958,2]
[335504290,1724287837851,-5103.35,0.00010958,2]
[335504291,1724287837860,-500.0,0.00010958,2]
[335504292,1724287837870,-500.0,0.00010958,2]
[335504293,1724287837879,-500.0,0.00010958,2]
[335504294,1724287837889,-500.0,0.00010958,2]
[335504295,1724287837899,-493.10631822,0.00010958,2]
[335504296,1724287837908,-1489.71,0.00010958,2]
[335504298,1724287837917,-4465.47,0.00010958,2]
[335504299,1724287837927,-4465.47,0.00010958,2]
[335504301,1724287837942,-500.0,0.00010958,2]
[335504303,1724287837951,-500.0,0.00010958,2]
[335504305,1724287837961,-500.0,0.00010958,2]
[335504307,1724287837971,-9590.78,0.00010958,2]
[335504310,1724287837980,-9590.78,0.00010958,2]
[335504313,1724287837990,-1715.67,0.00010958,2]
[335504315,1724287838000,-1715.67,0.00010958,2]
[335504316,1724287838010,-8362.49,0.00010958,2]
[335504317,1724287838019,-500.0,0.00010958,2]
[335504318,1724287838028,-500.0,0.00010958,2]
[335504319,1724287838038,-16832.15,0.00010958,2]
[335504320,1724287838047,-16832.15,0.00010958,2]
[335504321,1724287838056,-10897.93,0.00010958,2]
[335504322,1724287838065,-845.84,0.00010958,2]
[335504323,1724287838075,-10897.93,0.00010958,2]
[335504324,1724287838084,-845.84,0.00010958,2]
[335504325,1724287838093,-5924.54,0.00010958,2]
[335504326,1724287838103,-5924.54,0.00010958,2]
[335504327,1724287838112,-618.99,0.00010958,2]
[335504328,1724287838122,-618.99,0.00010958,2]
[335504329,1724287838131,-11045.01,0.00010958,2]
[335504330,1724287838141,-11045.01,0.00010958,2]
[335504331,1724287838151,-572.73,0.00010958,2]
[335504332,1724287838160,-572.73,0.00010958,2]
[335504333,1724287838169,-2722.04,0.00010958,2]
[335504334,1724287838179,-2722.04,0.00010958,2]
[335504335,1724287838188,-3294.88,0.00010958,2]
[335504336,1724287838198,-500.0,0.00010958,2]
[335504337,1724287838207,-500.0,0.00010958,2]
[335504338,1724287838217,-500.0,0.00010958,2]
[335504339,1724287838227,-8832.61,0.00010958,2]
[335504340,1724287838236,-3695.21288162,0.00010958,2]
[335504341,1724287838249,-1806.34243904,0.00010958,2]
[335504342,1724287838269,-1632.9959002,0.00010958,2]
[335504343,1724287838280,-965.47893929,0.00010958,2]
[335504346,1724287839708,-732.57983985,0.00010958,2]
[335504347,1724287839717,-500.0,0.00010958,2]
[335504348,1724287839728,-500.0,0.00010958,2]
[335504349,1724287839738,-881.16,0.00010958,2]
[335504350,1724287839748,-881.16,0.00010958,2]
[335504351,1724287839758,-500.0,0.00010958,2]
[335504352,1724287839767,-500.0,0.00010958,2]
[335504353,1724287839777,-500.0,0.00010958,2]
[335504354,1724287839786,-500.0,0.00010958,2]
[335504355,1724287839794,-820.44560765,0.00010958,2]
[335504356,1724287839870,-2444.98439235,0.00010958,2]
[335504357,1724287839879,-3265.43,0.00010958,2]
[335504358,1724287839888,-500.0,0.00010958,2]
[335504359,1724287839897,-500.0,0.00010958,2]
[335504360,1724287839906,-500.0,0.00010958,2]
[335504361,1724287839915,-439.03678783,0.00010958,2]
[335504362,1724287839924,-500.0,0.00010958,2]
[335504363,1724287840022,-3191.99,0.00010958,2]
[335504364,1724287840034,-500.0,0.00010958,2]
[335504365,1724287840043,-2999.14767111,0.00010958,2]
[335504366,1724287840054,-192.84232889,0.00010958,2]
[335504367,1724287840063,-500.0,0.00010958,2]
[335504368,1724287840072,-500.0,0.00010958,2]
[335504369,1724287840081,-824.36,0.00010958,2]
[335504370,1724287840092,-824.36,0.00010958,2]
[335504371,1724287840103,-500.0,0.00010958,2]
[335504372,1724287840113,-500.0,0.00010958,2]
[335504373,1724287840124,-500.0,0.00010958,2]
[335504374,1724287840135,-500.0,0.00010958,2]
[335504375,1724287840146,-11.537671,0.00010958,2]
[335504376,1724287840157,-488.462329,0.00010958,2]
[335504377,1724287840167,-500.0,0.00010958,2]
[335504378,1724287840175,-500.0,0.00010958,2]
[335504379,1724287840186,-500.0,0.00010958,2]
[335504380,1724287840196,-500.0,0.00010958,2]
[335504382,1724287840206,-2437.06613522,0.00010958,2]
[335504383,1724287840217,-3285.42717412,0.00010958,2]
[335504384,1724287840229,-3951.25058066,0.00010958,2]
[335504385,1724287840240,-9661.50611,0.00010958,2]
[335504386,1724287840251,-500.0,0.00010958,2]
[335504387,1724287840261,-500.0,0.00010958,2]
[335504389,1724287840270,-500.0,0.00010958,2]
[335504391,1724287840279,-61.42184268,0.00010958,2]
[335504395,1724287840306,-438.57815732,0.00010958,2]
[335504397,1724287840315,-500.0,0.00010958,2]
[335504399,1724287840324,-500.0,0.00010958,2]
[335504400,1724287840333,-500.0,0.00010958,2]
[335504402,1724287840342,-500.0,0.00010958,2]
[335504404,1724287840351,-500.0,0.00010958,2]
[335504406,1724287840360,-2647.8,0.00010958,2]
[335504408,1724287840369,-2647.8,0.00010958,2]
[335504410,1724287840378,-1028.33,0.00010958,2]
[335504412,1724287840387,-1028.33,0.00010958,2]
[335504414,1724287840396,-785.04,0.00010958,2]
[335504416,1724287840406,-785.04,0.00010958,2]
[335504418,1724287840415,-842.98,0.00010958,2]
[335504419,1724287840424,-500.0,0.00010958,2]
[335504421,1724287840433,-842.98,0.00010958,2]
[335504423,1724287840442,-500.0,0.00010958,2]
[335504425,1724287840451,-842.98,0.00010958,2]
[335504427,1724287840460,-500.0,0.00010958,2]
[335504429,1724287840469,-842.98,0.00010958,2]
[335504431,1724287840478,-5732.06,0.00010958,2]
[335504433,1724287840487,-5732.06,0.00010958,2]
[335504435,1724287840496,-2833.07,0.00010958,2]
[335504437,1724287840505,-3937.36,0.00010958,2]
[335504438,1724287840514,-3937.36,0.00010958,2]
[335504440,1724287840523,-1302.42,0.00010958,2]
[335504442,1724287840532,-1302.42,0.00010958,2]
[335504444,1724287840541,-1302.42,0.00010958,2]
[335504446,1724287840550,-1302.42,0.00010958,2]
[335504447,1724287840559,-527.2956338,0.00010958,2]
[335504449,1724287840568,-500.0,0.00010958,2]
[335504451,1724287840577,-1863.58,0.00010958,2]
[335504453,1724287840586,-9035.45629259,0.00010958,2]
[335504455,1724287840599,-760.11591725,0.00010958,2]
[335504457,1724287840609,-401.71205352,0.00010958,2]
[335504459,1724287840620,-3333.99104239,0.00010958,2]
[335504461,1724287840631,-544.08469425,0.00010958,2]
[335504463,1724287840640,-14075.36,0.00010958,2]
[335504465,1724287840650,-7802.59,0.00010958,2]
[335504467,1724287840658,-505.43308464,0.00010958,2]
[335504469,1724287840667,-7802.59,0.00010958,2]
[335504471,1724287840676,-507.44699969,0.00010958,2]
[335504473,1724287840685,-2790.23,0.00010958,2]
[335504474,1724287840694,-2790.23,0.00010958,2]
[335504476,1724287840703,-500.0,0.00010958,2]
[335504478,1724287840712,-500.0,0.00010958,2]
[335504480,1724287840721,-2790.23,0.00010958,2]
[335504482,1724287840730,-500.0,0.00010958,2]
[335504484,1724287840739,-2790.23,0.00010958,2]
[335504486,1724287840748,-17957.72,0.00010958,2]
[335504488,1724287840757,-17957.72,0.00010958,2]
[335504489,1724287840766,-500.0,0.00010958,2]
[335504491,1724287840775,-500.0,0.00010958,2]
[335504493,1724287840784,-500.0,0.00010958,2]
[335504495,1724287840793,-500.0,0.00010958,2]
[335504497,1724287840802,-7121.15,0.00010958,2]
[335504499,1724287840811,-7121.15,0.00010958,2]
[335504501,1724287840820,-690.84,0.00010958,2]
[335504502,1724287840828,-500.0,0.00010958,2]
[335504504,1724287840837,-500.0,0.00010958,2]
[335504506,1724287840847,-500.0,0.00010958,2]
[335504508,1724287840856,-500.0,0.00010958,2]
[335504510,1724287840865,-500.0,0.00010958,2]
[335504512,1724287840874,-500.0,0.00010958,2]
[335504513,1724287840884,-500.0,0.00010958,2]
[335504515,1724287840893,-500.0,0.00010958,2]
[335504516,1724287840903,-508.69751141,0.00010958,2]
[335504517,1724287840912,-500.0,0.00010958,2]
[335504518,1724287840921,-5550.01,0.00010958,2]
[335504519,1724287840930,-5550.01,0.00010958,2]
[335504520,1724287840943,-500.0,0.00010958,2]
[335504521,1724287840953,-500.0,0.00010958,2]
[335504522,1724287840963,-4369.91,0.00010958,2]
[335504523,1724287840973,-565.05894987,0.00010958,2]
[335504524,1724287840982,-4369.91,0.00010958,2]
[335504525,1724287840992,-500.0,0.00010958,2]
[335504526,1724287841001,-500.0,0.00010958,2]
[335504527,1724287841012,-2043.87,0.00010958,2]
[335504528,1724287841023,-566.33285271,0.00010958,2]
[335504529,1724287841032,-2043.87,0.00010958,2]
[335504530,1724287841042,-540.25790729,0.00010958,2]
[335504531,1724287841051,-500.0,0.00010958,2]
[335504532,1724287841061,-9877.22,0.00010958,2]
[335504533,1724287841069,-9877.22,0.00010958,2]
[335504534,1724287841079,-9877.22,0.00010958,2]
[335504535,1724287841089,-500.0,0.00010958,2]
[335504536,1724287841098,-9877.22,0.00010958,2]
[335504537,1724287841107,-500.0,0.00010958,2]
[335504538,1724287841117,-500.0,0.00010958,2]
[335504539,1724287841126,-547.33404627,0.00010958,2]
[335504540,1724287841135,-500.0,0.00010958,2]
[335504541,1724287841144,-500.0,0.00010958,2]
[335504542,1724287841155,-503.64,0.00010958,2]
[335504543,1724287841164,-500.0,0.00010958,2]
[335504544,1724287841173,-500.0,0.00010958,2]
[335504545,1724287841182,-3323.61,0.00010958,2]
[335504546,1724287841191,-500.0,0.00010958,2]
[335504547,1724287841200,-3323.61,0.00010958,2]
[335504548,1724287841211,-522.37623565,0.00010958,2]
[335504549,1724287841221,-3323.61,0.00010958,2]
[335504550,1724287841230,-3323.61,0.00010958,2]
[335504551,1724287841240,-500.0,0.00010958,2]
[335504552,1724287841249,-500.0,0.00010958,2]
[335504553,1724287841259,-539.74756452,0.00010958,2]
[335504554,1724287841268,-3110.91,0.00010958,2]
[335504555,1724287841277,-3110.91,0.00010958,2]
[335504556,1724287841286,-500.0,0.00010958,2]
[335504557,1724287841295,-539.7740673,0.00010958,2]
[335504558,1724287841305,-500.0,0.00010958,2]
[335504559,1724287841314,-2093.03,0.00010958,2]
[335504560,1724287841323,-500.0,0.00010958,2]
[335504561,1724287841332,-2093.03,0.00010958,2]
[335504562,1724287841342,-500.0,0.00010958,2]
[335504563,1724287841351,-3774.65,0.00010958,2]
[335504564,1724287841360,-3774.65,0.00010958,2]
[335504565,1724287841370,-3217.15,0.00010958,2]
[335504566,1724287841379,-3217.15,0.00010958,2]
[335504567,1724287841473,-3217.15,0.00010958,2]
[335504568,1724287841483,-3217.15,0.00010958,2]
[335504569,1724287841492,-1042.5,0.00010958,2]
[335504570,1724287841501,-500.0,0.00010958,2]
[335504571,1724287841511,-500.0,0.00010958,2]
[335504572,1724287841520,-500.0,0.00010958,2]
[335504573,1724287841529,-500.0,0.00010958,2]
[335504574,1724287841539,-515.40625582,0.00010958,2]
[335504575,1724287841549,-5579.33,0.00010958,2]
[335504576,1724287841558,-5579.33,0.00010958,2]
[335504577,1724287841567,-500.0,0.00010958,2]
[335504578,1724287841576,-500.0,0.00010958,2]
[335504579,1724287841585,-500.0,0.00010958,2]
[335504580,1724287841594,-500.0,0.00010958,2]
[335504581,1724287841605,-546.57,0.00010958,2]
[335504582,1724287841614,-500.0,0.00010958,2]
[335504583,1724287841623,-546.57,0.00010958,2]
[335504584,1724287841633,-546.57,0.00010958,2]
[335504585,1724287841643,-13051.69,0.00010958,2]
[335504586,1724287841653,-1169.9,0.00010958,2]
[335504587,1724287841663,-13051.69,0.00010958,2]
[335504588,1724287841672,-1169.9,0.00010958,2]
[335504589,1724287841681,-500.0,0.00010958,2]
[335504590,1724287841690,-1169.9,0.00010958,2]
[335504591,1724287841700,-500.0,0.00010958,2]
[335504592,1724287841710,-1169.9,0.00010958,2]
[335504593,1724287841719,-3489.12,0.00010958,2]
[335504594,1724287841728,-187.53627078,0.00010958,2]
[335504595,1724287841737,-3489.12,0.00010958,2]
[335504596,1724287841746,-3489.12,0.00010958,2]
[335504597,1724287841756,-3489.12,0.00010958,2]
[335504598,1724287841765,-500.0,0.00010958,2]
[335504599,1724287841774,-500.0,0.00010958,2]
[335504600,1724287841784,-500.0,0.00010958,2]
[335504601,1724287841792,-500.0,0.00010958,2]
[335504602,1724287841801,-500.0,0.00010958,2]
[335504603,1724287841810,-500.0,0.00010958,2]
[335504604,1724287841819,-500.0,0.00010958,2]
[335504605,1724287841828,-500.0,0.00010958,2]
[335504606,1724287841837,-286.21,0.00010958,2]
[335504607,1724287841846,-500.0,0.00010958,2]
[335504608,1724287841855,-3189.48,0.00010958,2]
[335504609,1724287841864,-532.11551485,0.00010958,2]
[335504610,1724287841874,-3189.48,0.00010958,2]
[335504611,1724287841883,-3189.48,0.00010958,2]
[335504612,1724287841892,-529.10426472,0.00010958,2]
[335504613,1724287841902,-3189.48,0.00010958,2]
[335504614,1724287841911,-3344.39378023,0.00010958,2]
[335504615,1724287841930,-529.00621977,0.00010958,2]
[335504616,1724287841943,-587.25321911,0.00010958,2]
[335504617,1724287841964,-3286.14678089,0.00010958,2]
[335504618,1724287841973,-196.81929007,0.00010958,2]
[335504619,1724287841985,-647.526547,0.00010958,2]
[335504620,1724287841996,-739.70005,0.00010958,2]
[335504621,1724287842007,-669.21960628,0.00010958,2]
[335504622,1724287842019,-1237.64450665,0.00010958,2]
[335504623,1724287842028,-3873.4,0.00010958,2]
[335504624,1724287842038,-87.12183987,0.00010958,2]
[335504629,1724287842658,-3313.60911296,0.00010958,2]
[335504636,1724287842819,-90.17904717,0.00010958,2]
[335504637,1724287842829,-3873.4,0.00010958,2]
[335504638,1724287842838,-2436.73,0.00010958,2]
[335504639,1724287842849,-500.0,0.00010958,2]
[335504640,1724287842859,-500.0,0.00010958,2]
[335504641,1724287842868,-2436.73,0.00010958,2]
[335504642,1724287842878,-500.0,0.00010958,2]
[335504645,1724287842971,-500.0,0.00010958,2]
[335504646,1724287842980,-500.0,0.00010958,2]
[335504647,1724287842989,-6111.72,0.00010958,2]
[335504648,1724287842998,-376.56906522,0.00010958,2]
[335504649,1724287843011,-437.12093478,0.00010958,2]
[335504650,1724287843020,-6111.72,0.00010958,2]
[335504651,1724287843029,-500.0,0.00010958,2]
[335504652,1724287843040,-813.69,0.00010958,2]
[335504653,1724287843051,-500.0,0.00010958,2]
[335504654,1724287843062,-353.95,0.00010958,2]
[335504655,1724287843072,-500.0,0.00010958,2]
[335504656,1724287843081,-500.0,0.00010958,2]
[335504657,1724287843091,-500.0,0.00010958,2]
[335504658,1724287843103,-500.0,0.00010958,2]
[335504659,1724287843114,-577.74876241,0.00010958,2]
[335504660,1724287843124,-500.0,0.00010958,2]
[335504661,1724287843135,-500.0,0.00010958,2]
[335504662,1724287843145,-500.0,0.00010958,2]
[335504664,1724287843155,-500.0,0.00010958,2]
[335504666,1724287843164,-544.1,0.00010958,2]
[335504668,1724287843173,-544.1,0.00010958,2]
[335504669,1724287843182,-544.1,0.00010958,2]
[335504670,1724287843191,-500.0,0.00010958,2]
[335504671,1724287843200,-500.0,0.00010958,2]
[335504672,1724287843209,-2503.63,0.00010958,2]
[335504673,1724287843218,-2503.63,0.00010958,2]
[335504674,1724287843227,-830.56,0.00010958,2]
[335504675,1724287843238,-2503.63,0.00010958,2]
[335504676,1724287843248,-830.56,0.00010958,2]
[335504677,1724287843258,-2503.63,0.00010958,2]
[335504678,1724287843267,-4982.04,0.00010958,2]
[335504679,1724287843277,-4982.04,0.00010958,2]
[335504680,1724287843285,-614.54,0.00010958,2]
[335504681,1724287843294,-650.11,0.00010958,2]
[335504682,1724287843303,-500.0,0.00010958,2]
[335504683,1724287843312,-500.0,0.00010958,2]
[335504684,1724287843321,-500.0,0.00010958,2]
[335504685,1724287843331,-8028.2,0.00010958,2]
[335504686,1724287843340,-8028.2,0.00010958,2]
[335504687,1724287843349,-7493.27,0.00010958,2]
[335504688,1724287843358,-7403.13141168,0.00010958,2]
[335504689,1724287843383,-90.13858832,0.00010958,2]
[335504690,1724287843392,-500.0,0.00010958,2]
[335504691,1724287843404,-397.25,0.00010958,2]
[335504692,1724287843413,-500.0,0.00010958,2]
[335504693,1724287843423,-500.0,0.00010958,2]
[335504694,1724287843432,-533.28309743,0.00010958,2]
[335504695,1724287843440,-1727.54,0.00010958,2]
[335504696,1724287843450,-1727.54,0.00010958,2]
[335504697,1724287843459,-1727.54,0.00010958,2]
[335504698,1724287843468,-1727.54,0.00010958,2]
[335504699,1724287843477,-7439.84431761,0.00010958,2]
[335504700,1724287843488,-526.02,0.00010958,2]
[335504718,1724287845646,-48.31568239,0.00010958,2]
[335504720,1724287845655,-1495.26945202,0.00010958,2]
[335504724,1724287845757,-304.55629469,0.00010958,2]
[335504726,1724287846138,-2807.81747002,0.00010958,2]
[335504727,1724287846155,-1771.28239606,0.00010958,2]
[335504728,1724287846178,-1635.25438721,0.00010958,2]
[335504729,1724287846187,-500.0,0.00010958,2]
[335504730,1724287846198,-626.53644068,0.00010958,2]
[335504731,1724287846207,-500.0,0.00010958,2]
[335504732,1724287846217,-611.48550925,0.00010958,2]
[335504733,1724287846227,-500.0,0.00010958,2]
[335504734,1724287846237,-500.0,0.00010958,2]
[335504735,1724287846246,-500.0,0.00010958,2]
[335504736,1724287846256,-500.0,0.00010958,2]
[335504737,1724287846265,-500.0,0.00010958,2]
[335504738,1724287846274,-6834.25,0.00010958,2]
[335504739,1724287846283,-454.98,0.00010958,2]
[335504740,1724287846292,-6834.25,0.00010958,2]
[335504741,1724287846301,-500.0,0.00010958,2]
[335504742,1724287846311,-500.0,0.00010958,2]
[335504743,1724287846321,-500.0,0.00010958,2]
[335504744,1724287846331,-500.0,0.00010958,2]
[335504745,1724287846339,-520.43371997,0.00010958,2]
[335504746,1724287846349,-500.0,0.00010958,2]
[335504747,1724287846358,-521.40738143,0.00010958,2]
[335504748,1724287846367,-500.0,0.00010958,2]
[335504749,1724287846376,-500.0,0.00010958,2]
[335504750,1724287846385,-500.0,0.00010958,2]
[335504751,1724287846394,-500.0,0.00010958,2]
[335504752,1724287846403,-500.0,0.00010958,2]
[335504753,1724287846412,-500.0,0.00010958,2]
[335504754,1724287846422,-500.0,0.00010958,2]
[335504755,1724287846431,-500.0,0.00010958,2]
[335504756,1724287846440,-500.0,0.00010958,2]
[335504757,1724287846449,-500.0,0.00010958,2]
[335504758,1724287846458,-500.0,0.00010958,2]
[335504759,1724287846467,-500.0,0.00010958,2]
[335504760,1724287846476,-225.58550638,0.00010958,2]
[335504761,1724287846485,-4915.07806382,0.00010958,2]
[335504762,1724288110863,158.79,7.233e-05,2]
[335504763,1724288170443,17901.35538114,8.767e-05,2]
[335504764,1724288189485,230.29866423,8.767e-05,2]
[335504765,1724288243753,523.02806141,8.767e-05,2]
[335504766,1724288284062,23890.85,9.903e-05,2]
[335504767,1724288295114,2517.18,9.885e-05,2]
[335504778,1724288545985,480.0,9.806e-05,2]
[335504779,1724288593086,150.0,7.059e-05,2]
[335504780,1724288593106,8.79,7.059e-05,2]
[335504783,1724288620181,200.0,9.821e-05,2]
[335504789,1724288693873,150.0,9.899e-05,2]
[335504790,1724288693893,150.0,9.899e-05,2]
[335504791,1724288693913,150.0,9.899e-05,2]
[335504792,1724288693933,150.0,9.899e-05,2]
[335504793,1724288693953,150.0,9.899e-05,2]
[335504794,1724288693973,150.0,9.899e-05,2]
[335504795,1724288693994,182.65,9.899e-05,2]
[335504796,1724288694014,150.0,9.899e-05,2]
[335504797,1724288694037,20840.11637745,9.899e-05,2]
[335504798,1724288713069,150.0,9.856e-05,2]
[335504799,1724288713093,100.0,9.856e-05,2]
[335504802,1724288794403,150.0,9.878e-05,2]
[335504803,1724288794424,150.0,9.878e-05,2]
[335504804,1724288794445,150.0,9.878e-05,2]
[335504805,1724288794465,264.086428,9.878e-05,2]
[335504806,1724288794486,698.353572,9.878e-05,2]
[335504807,1724288808539,150.0,9.893e-05,2]
[335504808,1724288808561,150.0,9.893e-05,2]
[335504809,1724288808581,150.0,9.893e-05,2]
[335504810,1724288808603,187.956817,9.893e-05,2]
[335504812,1724288826499,924.95,8.219e-05,2]
[335504813,1724288841677,212.48,9.866e-05,2]
[335504814,1724288853777,150.0,9.839e-05,2]
[335504815,1724288853799,150.0,9.839e-05,2]
[335504816,1724288853821,150.0,9.839e-05,2]
[335504817,1724288853842,150.0,9.839e-05,2]
[335504818,1724288853863,150.0,9.839e-05,2]
[335504819,1724288853884,150.0,9.839e-05,2]
[335504820,1724288853905,194.473572,9.839e-05,2]
[335504821,1724288854066,150.0,9.839e-05,2]
[335504822,1724288854089,13548.126428,9.839e-05,2]
[335504824,1724288888931,150.0,9.818e-05,2]
[335504825,1724288888951,119.44,9.818e-05,2]
[335504826,1724288894592,10542.54247587,9.861e-05,2]
[335504827,1724288901177,168.32,9.841e-05,2]
[335504830,1724288963904,150.0,9.841e-05,2]
[335504831,1724288963924,94.54,9.841e-05,2]
[335504832,1724288982803,376.00802265,9.899e-05,2]
[335504834,1724289002875,500.0,9.841e-05,2]
[335504835,1724289003213,500.0,9.841e-05,2]
[335504836,1724289003881,500.0,9.841e-05,2]
[335504837,1724289004220,500.0,9.841e-05,2]
[335504838,1724289004586,150.0,9.841e-05,2]
[335504839,1724289004612,350.0,9.841e-05,2]
[335504840,1724289005279,150.0,9.841e-05,2]
[335504841,1724289005300,150.0,9.841e-05,2]
[335504842,1724289005328,150.0,9.841e-05,2]
[335504843,1724289005348,122.0,9.841e-05,2]
[335504857,1724289037735,-596.24400213,9.91e-05,2]
[335504860,1724289037744,-1673.08782014,9.929e-05,2]
[335504862,1724289037753,-155.46672177,9.941e-05,2]
[335504864,1724289037763,-721.99525596,9.943e-05,2]
[335504866,1724289037808,-771.01953438,9.943e-05,2]
[335504867,1724289037943,-2452.84978434,9.943e-05,2]
[335504868,1724289037952,-520.0,9.992e-05,2]
[335504869,1724289037962,-1050.0,0.0001,2]
[335504870,1724289037971,-169.75,0.00010023,2]
[335504871,1724289037981,-71.23892719,0.00010038,2]
[335504872,1724289037992,-145.56107281,0.00010038,2]
[335504873,1724289038001,-924.95,0.0001047,2]
[335504874,1724289038010,-3034.58196902,0.00010505,2]
[335504875,1724289038020,-2945.21277521,0.00010505,2]
[335504876,1724289038029,-300.0,0.00010565,2]
[335504877,1724289038038,-667.34,0.00010628,2]
[335504878,1724289038047,-364.02,0.00010699,2]
[335504879,1724289038056,-150.0,0.000107,2]
[335504880,1724289038066,-637.14,0.000107,2]
[335504881,1724289038075,-426.79,0.000107,2]
[335504882,1724289038084,-1000.0,0.000107,2]
[335504883,1724289038094,-234.3002,0.00010735,2]
[335504884,1724289038103,-150.0,0.00010794,2]
[335504885,1724289038114,-49640.97838085,0.00010795,2]
[335504886,1724289038127,-33278.88494011,0.00010795,2]
[335504887,1724289038152,-2944.34240302,0.00010795,2]
[335504888,1724289038163,-4333.03287602,0.00010795,2]
[335504889,1724289038173,-150.0,0.000108,2]
[335504890,1724289038182,-713.42,0.000108,2]
[335504891,1724289038192,-1116.03,0.000108,2]
[335504892,1724289038201,-300.0,0.000108,2]
[335504893,1724289038210,-1000.0,0.000108,2]
[335504894,1724289038220,-1488.89528188,0.00010835,2]